bitfinex-derivatives/quotes_BTCF0:USTF0_20250318
["timestamp","ask_amount","ask_price","bid_price","bid_amount"]
[1742266951185,0.1820749,83288.0,83287.0,0.5139763]
[1742266953074,0.1820749,83288.0,83287.0,0.3608]
[1742266953678,0.19303379,83288.0,83287.0,0.3608]
[1742266954482,0.19291581,83288.0,83287.0,0.3608]
[1742266955276,0.19288074,83288.0,83287.0,0.3608]
[1742266956379,0.22548074,83288.0,83287.0,0.3608]
[1742266956579,0.22548074,83288.0,83287.0,0.4808763]
[1742266956781,0.22548074,83288.0,83287.0,0.3608]
[1742266957183,0.22549451,83288.0,83287.0,0.3608]
[1742266957487,0.22549451,83288.0,83287.0,0.3916]
[1742266957688,0.22549451,83288.0,83287.0,0.4229]
[1742266958293,0.21455692,83288.0,83287.0,0.4229]
[1742266958493,0.18195692,83288.0,83287.0,0.5429763]
[1742266958683,0.21476885,83298.0,83295.0,0.1200648]
[1742266958995,0.0318,83297.0,83295.0,0.1200648]
[1742266959289,0.0318,83297.0,83295.0,0.1846648]
[1742266959993,0.03028002,83296.0,83295.0,0.2174648]
[1742266960194,0.03228002,83296.0,83295.0,0.2174648]
[1742266960390,0.21238302,83296.0,83295.0,0.2174648]
[1742266960995,0.21438302,83296.0,83295.0,0.2174648]
[1742266961491,0.27341652,83296.0,83295.0,0.2174648]
[1742266962389,0.27341652,83296.0,83295.0,0.0328]
[1742266963594,0.27341652,83296.0,83295.0,0.1528648]
[1742266963785,0.27341652,83296.0,83295.0,0.1859648]
[1742266964396,0.27341652,83296.0,83295.0,0.1528648]
[1742266964787,0.30381652,83296.0,83295.0,0.0328]
[1742266964983,0.1200792,83285.0,83280.0,0.12648095]
[1742266965179,0.1200792,83285.0,83284.0,0.4808794]
[1742266965584,0.1200792,83285.0,83284.0,0.3608]
[1742266965786,0.1836792,83285.0,83284.0,0.4808806]
[1742266966790,0.1836792,83285.0,83284.0,0.5449806]
[1742266967195,0.1836792,83285.0,83284.0,0.5137806]
[1742266967694,0.1836792,83285.0,83284.0,0.3937]
[1742266968895,0.1836792,83285.0,83284.0,0.4249]
[1742266969407,0.1836792,83285.0,83284.0,0.5137806]
[1742266969990,0.1836792,83285.0,83284.0,0.3937]
[1742266971498,0.1836792,83285.0,83284.0,0.5465806]
[1742266976011,0.1836792,83285.0,83284.0,0.3608]
[1742266976304,0.3319592,83285.0,83284.0,0.3608]
[1742266976813,0.1200835,83282.0,83281.0,0.01197566]
[1742266977015,0.0600411,83283.0,83279.0,0.00018002]
[1742266977016,0.1200864,83280.0,83279.0,0.00018002]
[1742266977521,0.1511864,83280.0,83279.0,0.00018002]
[1742266977816,0.1844864,83280.0,83279.0,0.00018002]
[1742266979010,0.1844864,83280.0,83279.0,0.03028002]
[1742266979205,0.1844864,83280.0,83279.0,0.00018002]
[1742266979413,0.1844864,83280.0,83268.0,0.35828914]
[1742266979414,0.1200936,83275.0,83268.0,0.35828914]
[1742266979611,0.1201023,83269.0,83268.0,0.35760914]
[1742266979808,0.2373823,83269.0,83268.0,0.35760914]
[1742266980013,0.1201109,83263.0,83256.0,0.52130426]
[1742266980209,0.120121,83256.0,83255.0,0.43182652]
[1742266980614,0.182521,83256.0,83255.0,0.43182652]
[1742266982112,0.183521,83256.0,83255.0,0.43182652]
[1742266982317,0.300801,83256.0,83255.0,0.43182652]
[1742266982515,0.183521,83256.0,83255.0,0.55194902]
[1742266982911,0.300801,83256.0,83255.0,0.55194902]
[1742266983509,0.300801,83256.0,83255.0,0.58424902]
[1742266983510,0.033,83256.0,83255.0,0.58424902]
[1742266983718,0.035,83256.0,83255.0,0.61514902]
[1742266983914,0.037,83256.0,83255.0,0.61514902]
[1742266984313,0.035,83256.0,83255.0,0.61514902]
[1742266984519,0.005,83256.0,83255.0,0.61514902]
[1742266985112,0.125121,83256.0,83255.0,0.61514902]
[1742266985623,0.158021,83256.0,83255.0,0.46412652]
[1742266985919,0.158021,83256.0,83255.0,0.43182652]
[1742266986119,0.450021,83256.0,83255.0,0.43182652]
[1742266986320,0.450021,83256.0,83243.0,0.0311]
[1742266986321,0.1201383,83244.0,83243.0,0.0311]
[1742266986516,0.1201484,83237.0,83236.0,0.0325]
[1742266986716,0.1201499,83236.0,83235.0,0.0311]
[1742266986918,0.1850499,83236.0,83235.0,0.0311]
[1742266987120,0.1201513,83235.0,83227.0,0.1201624]
[1742266987420,0.12016,83229.0,83228.0,0.0311]
[1742266987622,0.12016,83229.0,83228.0,0.1512614]
[1742266987937,0.15156,83229.0,83228.0,0.1512614]
[1742266988229,0.18296,83229.0,83228.0,0.1835614]
[1742266988824,0.18296,83229.0,83228.0,0.0634]
[1742266989013,0.1201629,83227.0,83226.0,0.3608]
[1742266989723,0.1829629,83227.0,83226.0,0.3608]
[1742266989914,0.0628,83227.0,83226.0,0.4809643]
[1742266990223,0.0314,83227.0,83226.0,0.4909643]
[1742266990520,0.0600752,83236.0,83233.0,0.2403084]
[1742266990818,0.0326,83243.0,83233.0,0.2403084]
[1742266990819,0.0309,83240.0,83235.0,0.3608]
[1742266991018,0.1201499,83236.0,83235.0,0.3608]
[1742266991215,0.1201513,83235.0,83234.0,0.11732]
[1742266991416,0.0909763,83235.0,83232.0,0.0304]
[1742266991620,0.1201629,83227.0,83226.0,0.5410398]
[1742266991815,0.12391899,83227.0,83226.0,0.4308799]
[1742266992019,0.12391899,83227.0,83226.0,0.3608]
[1742266992722,0.18781899,83227.0,83226.0,0.4809643]
[1742266994823,0.18781899,83227.0,83226.0,0.3608]
[1742266995024,0.18781899,83227.0,83204.0,0.11732]
[1742266995025,0.1201918,83207.0,83204.0,0.11732]
[1742266995214,0.1201946,83205.0,83204.0,0.11732]
[1742266995522,0.1201946,83205.0,83204.0,0.12732]
[1742266995825,0.12395069,83205.0,83204.0,0.01]
[1742266996020,0.18865069,83205.0,83204.0,0.01]
[1742266997117,0.120199,83202.0,83200.0,1.01256]
[1742266997322,0.1820004,83201.0,83200.0,0.1]
[1742266997715,0.18575649,83201.0,83200.0,0.1]
[1742266998121,0.1820004,83201.0,83200.0,0.1]
[1742266999027,0.1820004,83201.0,83200.0,0.0518002]
[1742266999227,0.1820004,83201.0,83178.0,0.4116]
[1742266999228,0.120225,83184.0,83178.0,0.4116]
[1742266999418,0.120225,83184.0,83183.0,1.03956]
[1742267000619,0.152025,83184.0,83183.0,1.03956]
[1742267001020,0.152025,83184.0,83183.0,1.07006]
[1742267001719,0.152025,83184.0,83183.0,1.1902864]
[1742267002121,0.153025,83184.0,83183.0,1.1902864]
[1742267002325,0.153025,83184.0,83183.0,1.07006]
[1742267002636,0.153025,83184.0,83183.0,1.1902864]
[1742267003023,0.121225,83184.0,83183.0,1.1902864]
[1742267003224,0.121225,83184.0,83183.0,0.97382229]
[1742267003529,0.121225,83184.0,83183.0,0.98382229]
[1742267004823,0.121225,83184.0,83183.0,0.86359589]
[1742267005022,0.153025,83184.0,83183.0,0.97382229]
[1742267005224,0.121225,83184.0,83183.0,0.97382229]
[1742267005427,0.001,83184.0,83183.0,1.21382229]
[1742267005636,0.121225,83184.0,83183.0,1.21382229]
[1742267006034,0.121225,83184.0,83183.0,0.97382229]
[1742267006331,0.121225,83184.0,83183.0,0.79344708]
[1742267006530,0.001,83184.0,83183.0,0.79344708]
[1742267006737,0.121225,83184.0,83183.0,0.80344708]
[1742267006924,0.001,83184.0,83183.0,0.80344708]
[1742267007125,0.001,83184.0,83183.0,1.04344708]
[1742267007730,0.12039365,83192.0,83191.0,0.1202149]
[1742267007929,0.2274056,83192.0,83191.0,0.7883749]
[1742267008132,0.2274056,83192.0,83191.0,0.8184749]
[1742267008329,0.1071922,83192.0,83191.0,0.8184749]
[1742267008722,0.1071922,83192.0,83191.0,0.9684749]
[1742267009323,0.1071922,83192.0,83191.0,1.0015749]
[1742267009524,0.1426826,83199.0,83198.0,0.1202048]
[1742267009728,0.0631,83214.0,83206.0,0.1201932]
[1742267009940,0.183282,83214.0,83206.0,0.6083532]
[1742267010236,0.0311,83214.0,83206.0,0.7059532]
[1742267010441,0.0920852,83222.0,83206.0,0.9359532]
[1742267010625,0.0911859,83221.0,83206.0,0.9459532]
[1742267010824,0.21552919,83215.0,83214.0,0.1201817]
[1742267011036,0.21552919,83215.0,83214.0,0.8383417]
[1742267011231,0.21552919,83215.0,83214.0,0.9041417]
[1742267012023,0.25150301,83223.0,83214.0,0.9041417]
[1742267012024,0.25150301,83223.0,83222.0,0.1201701]
[1742267012231,0.28779956,83228.0,83227.0,0.1201629]
[1742267012432,0.28779956,83228.0,83227.0,0.3801629]
[1742267012624,0.28779956,83228.0,83227.0,0.4419629]
[1742267013136,0.1201534,83234.0,83233.0,0.1201542]
[1742267013341,0.1201534,83234.0,83233.0,0.87071021]
[1742267014025,0.39490699,83243.0,83242.0,0.1201412]
[1742267014224,0.39490699,83243.0,83242.0,0.8583812]
[1742267015028,0.51504679,83243.0,83242.0,0.8583812]
[1742267015338,0.1841398,83243.0,83242.0,0.86726774]
[1742267016136,0.0600569,83261.0,83246.0,0.0600674]
[1742267016331,0.1801756,83259.0,83258.0,0.4809167]
[1742267016534,0.1841166,83260.0,83259.0,0.1201167]
[1742267016733,0.1201037,83269.0,83268.0,0.1201029]
[1742267016937,0.1201037,83269.0,83268.0,0.2707229]
[1742267017438,0.1841037,83269.0,83268.0,0.2707229]
[1742267018031,0.1201138,83261.0,83260.0,0.00018013]
[1742267018836,0.1848138,83261.0,83260.0,0.00018013]
[1742267019244,0.1888138,83261.0,83260.0,0.00018013]
[1742267019736,0.1928138,83261.0,83260.0,0.00018013]
[1742267026337,0.0600627,83254.0,83251.0,0.08420651]
[1742267026541,0.1201268,83252.0,83251.0,0.0600634]
[1742267026939,0.1824268,83252.0,83251.0,0.0600634]
[1742267028239,0.1201282,83251.0,83250.0,0.3608]
[1742267028645,0.1824282,83251.0,83250.0,0.3608]
[1742267029245,0.1824282,83251.0,83250.0,0.4809297]
[1742267029444,0.1824282,83251.0,83250.0,0.1201297]
[1742267029636,0.1824282,83251.0,83250.0,0.1513297]
[1742267029837,0.1834282,83251.0,83250.0,0.1814297]
[1742267030037,0.1844282,83251.0,83250.0,0.1814297]
[1742267030544,0.002,83251.0,83250.0,0.4614297]
[1742267030845,0.002,83251.0,83250.0,0.4714297]
[1742267032164,0.002,83251.0,83250.0,0.6214297]
[1742267032448,0.03278013,83260.0,83259.0,0.1201167]
[1742267032646,0.03278013,83260.0,83259.0,0.9727967]
[1742267033531,0.00318013,83260.0,83259.0,0.9727967]
[1742267033734,0.00718013,83260.0,83259.0,0.9827967]
[1742267034739,0.00718013,83260.0,83259.0,1.8948367]
[1742267034941,0.1201055,83267.0,83266.0,0.1201066]
[1742267035136,0.032,83268.0,83267.0,0.1201052]
[1742267035341,0.032,83268.0,83267.0,0.3901052]
[1742267035542,0.032,83268.0,83267.0,0.4559052]
[1742267035543,0.1521037,83268.0,83267.0,0.4559052]
[1742267036047,0.1837037,83268.0,83267.0,0.4559052]
[1742267036445,0.1887037,83268.0,83267.0,0.4559052]
[1742267037039,0.1887037,83268.0,83267.0,0.4569052]
[1742267038145,0.1837037,83268.0,83267.0,0.4579052]
[1742267038343,0.1837037,83268.0,83267.0,0.47006151]
[1742267039248,0.18745784,83268.0,83267.0,0.47006151]
[1742267039449,0.18745784,83268.0,83267.0,0.47306151]
[1742267039749,0.18745784,83268.0,83267.0,0.47606151]
[1742267041643,0.18745784,83268.0,83267.0,0.47506151]
[1742267041841,0.18745784,83268.0,83267.0,0.003]
[1742267042152,0.1201282,83251.0,83250.0,0.3608]
[1742267042351,0.12188234,83251.0,83250.0,0.4809297]
[1742267042844,0.12188234,83251.0,83250.0,0.4930934]
[1742267042845,0.18348234,83251.0,83250.0,0.4930934]
[1742267043050,0.18148234,83251.0,83250.0,0.4930934]
[1742267043442,0.18148234,83251.0,83250.0,0.5258934]
[1742267043638,0.18148234,83251.0,83250.0,0.5576934]
[1742267044045,0.06735414,83251.0,83250.0,0.5576934]
[1742267044747,0.18748234,83251.0,83250.0,0.5576934]
[1742267045151,0.12575791,83251.0,83250.0,0.5576934]
[1742267045452,0.24588611,83251.0,83250.0,0.5576934]
[1742267045845,0.24588611,83251.0,83250.0,0.5566934]
[1742267047038,0.09375791,83251.0,83250.0,0.5566934]
[1742267047239,0.06215791,83251.0,83250.0,0.8366934]
[1742267047451,0.0313,83264.0,83255.0,0.0600607]
[1742267047655,0.22822483,83266.0,83258.0,0.4809181]
[1742267047850,0.0600558,83263.0,83258.0,0.7409181]
[1742267048061,0.0600554,83264.0,83258.0,0.8324181]
[1742267048246,0.0319,83260.0,83258.0,0.8324181]
[1742267048842,0.0313,83265.0,83258.0,0.8324181]
[1742267049046,0.00118013,83259.0,83258.0,0.8324181]
[1742267050458,0.0333,83264.0,83263.0,0.1201109]
[1742267050659,0.1534095,83264.0,83263.0,0.3573909]
[1742267050847,0.1534095,83264.0,83263.0,0.3113909]
[1742267051044,0.1849095,83264.0,83263.0,0.2784909]
[1742267051451,0.1849095,83264.0,83263.0,0.1301109]
[1742267051656,0.1869095,83264.0,83263.0,0.2473909]
[1742267051859,0.19778922,83264.0,83263.0,0.2473909]
[1742267052161,0.19978922,83264.0,83263.0,0.2804909]
[1742267053156,0.1889095,83264.0,83263.0,0.2804909]
[1742267053363,0.19979493,83264.0,83263.0,0.2804909]
[1742267054049,0.19979493,83264.0,83263.0,0.5404909]
[1742267055357,0.07968543,83264.0,83263.0,0.5404909]
[1742267055558,0.07968543,83264.0,83263.0,0.5710909]
[1742267055755,0.04818543,83264.0,83263.0,1.0810909]
[1742267056063,0.04818543,83264.0,83263.0,0.8210909]
[1742267057262,0.01488543,83264.0,83263.0,0.8210909]
[1742267057452,0.01488543,83264.0,83263.0,0.8510909]
[1742267057654,0.0325,83269.0,83268.0,0.1201037]
[1742267057855,0.0325,83269.0,83268.0,1.2309037]
[1742267058055,0.0325,83269.0,83268.0,1.04370644]
[1742267058255,0.0325,83269.0,83268.0,1.16381014]
[1742267058948,0.0385,83269.0,83268.0,1.16381014]
[1742267059968,0.04225408,83269.0,83268.0,1.16381014]
[1742267061163,0.03118013,83272.0,83271.0,0.1200994]
[1742267061363,0.03118013,83272.0,83271.0,1.1623794]
[1742267061561,0.03118013,83272.0,83271.0,1.1423794]
[1742267062264,0.03118013,83272.0,83271.0,1.1523794]
[1742267062464,0.24891652,83279.0,83278.0,0.1200893]
[1742267062655,0.20076449,83282.0,83280.0,0.1200864]
[1742267062656,0.031,83281.0,83280.0,0.1200864]
[1742267062860,0.0317,83286.0,83281.0,0.120085]
[1742267063060,0.031,83285.0,83283.0,0.1200821]
[1742267063264,0.031,83285.0,83283.0,0.9300821]
[1742267063459,0.031,83285.0,83283.0,0.9957821]
[1742267063663,0.32310572,83289.0,83285.0,0.0600391]
[1742267063864,0.1200734,83289.0,83288.0,0.5409123]
[1742267064068,0.1521734,83289.0,83288.0,1.0709123]
[1742267064272,0.15817827,83289.0,83288.0,1.1022123]
[1742267065864,0.16617827,83289.0,83288.0,1.1022123]
[1742267067272,0.02505218,83289.0,83288.0,1.1022123]
[1742267067576,0.14512558,83289.0,83288.0,1.11430975]
[1742267067875,0.02505218,83289.0,83288.0,1.11430975]
[1742267068270,0.01705218,83289.0,83288.0,1.11730975]
[1742267068470,0.01705218,83289.0,83288.0,1.11930975]
[1742267069574,0.02219362,83289.0,83288.0,1.11930975]
[1742267070773,0.02219362,83289.0,83288.0,1.39930975]
[1742267071077,0.0306,83290.0,83288.0,1.39930975]
[1742267071078,0.1201879,83292.0,83291.0,0.1200705]
[1742267071377,0.1201879,83292.0,83291.0,0.6620705]
[1742267071774,0.1201879,83292.0,83291.0,0.67104172]
[1742267072372,0.1201879,83292.0,83291.0,1.03384172]
[1742267072772,0.0001185,83292.0,83291.0,1.03384172]
[1742267073178,0.1201876,83292.0,83291.0,1.03484172]
[1742267073872,0.12394068,83292.0,83291.0,0.77284172]
[1742267074279,0.19314562,83292.0,83291.0,0.77284172]
[1742267074680,0.19314562,83292.0,83291.0,0.80394172]
[1742267074980,0.19314562,83292.0,83291.0,0.44314172]
[1742267075574,0.19314562,83292.0,83291.0,0.44214172]
[1742267075773,0.19314562,83292.0,83291.0,0.47364172]
[1742267075970,0.19314562,83292.0,83291.0,0.47464172]
[1742267076169,0.19314562,83292.0,83291.0,0.70464172]
[1742267076371,0.19314562,83292.0,83291.0,0.70564172]
[1742267076881,0.19314562,83292.0,83291.0,0.47564172]
[1742267078674,0.01697383,83292.0,83291.0,0.47564172]
[1742267078975,0.13704293,83292.0,83291.0,0.47564172]
[1742267080982,0.12607404,83292.0,83291.0,0.71564172]
[1742267082185,0.00600494,83292.0,83291.0,0.71564172]
[1742267082373,0.12607404,83292.0,83291.0,0.71564172]
[1742267082974,0.01718229,83292.0,83291.0,0.71564172]
[1742267084184,0.13725139,83292.0,83291.0,0.71564172]
[1742267084777,0.01718229,83292.0,83291.0,0.71564172]
[1742267085481,0.13725139,83292.0,83291.0,0.71564172]
[1742267085678,0.13725139,83292.0,83291.0,0.83288172]
[1742267086075,0.16915139,83292.0,83291.0,0.83288172]
[1742267087279,0.04908229,83292.0,83291.0,0.83288172]
[1742267090073,0.04307735,83292.0,83291.0,0.83288172]
[1742267090275,0.0319,83292.0,83291.0,0.83288172]
[1742267090483,0.04315497,83292.0,83291.0,0.83288172]
[1742267091189,0.16322407,83292.0,83291.0,0.83288172]
[1742267091390,0.19632407,83292.0,83291.0,0.83288172]
[1742267091791,0.07625497,83292.0,83291.0,0.83288172]
[1742267092091,0.15295894,83292.0,83291.0,0.83288172]
[1742267092288,0.15316071,83292.0,83291.0,0.83288172]
[1742267092888,0.12606565,83292.0,83291.0,0.83288172]
[1742267093090,0.1077352,83292.0,83291.0,0.83288172]
[1742267093289,0.1077352,83292.0,83291.0,0.58067386]
[1742267093497,0.06983026,83292.0,83291.0,0.70074436]
[1742267093678,0.06983026,83292.0,83291.0,0.72074436]
[1742267093883,0.06983026,83292.0,83291.0,0.83074436]
[1742267094589,0.06983026,83292.0,83291.0,0.83174436]
[1742267094789,0.06983026,83292.0,83291.0,0.83274436]
[1742267095691,0.06983026,83292.0,83291.0,0.82974436]
[1742267095877,0.06983026,83292.0,83291.0,0.83274436]
[1742267099194,0.06983026,83292.0,83291.0,0.83674436]
[1742267099594,0.06983026,83292.0,83291.0,0.83174436]
[1742267099898,0.06983026,83292.0,83291.0,0.83674436]
[1742267100290,0.06983026,83292.0,83291.0,0.71950436]
[1742267100483,0.06983026,83292.0,83291.0,0.83670436]
[1742267101289,0.06983026,83292.0,83291.0,0.83270436]
[1742267101498,0.06983026,83292.0,83291.0,0.83670436]
[1742267101690,0.06983026,83292.0,83291.0,0.83570436]
[1742267102090,0.06983026,83292.0,83291.0,0.83470436]
[1742267102400,0.06983026,83292.0,83291.0,0.83070436]
[1742267102589,0.06983026,83292.0,83291.0,0.83370436]
[1742267103195,0.05837373,83292.0,83291.0,0.83370436]
[1742267104998,0.05837373,83292.0,83291.0,0.83470436]
[1742267105201,0.05837373,83292.0,83291.0,0.83570436]
[1742267106600,0.05837373,83292.0,83291.0,0.83670436]
[1742267108003,0.17959116,83292.0,83291.0,0.83670436]
[1742267108903,0.66046026,83292.0,83291.0,0.26686264]
[1742267109205,0.66046026,83292.0,83291.0,0.009]
[1742267109402,0.69136026,83292.0,83291.0,0.009]
[1742267109596,0.72156026,83292.0,83291.0,0.008]
[1742267109797,0.72156026,83292.0,83291.0,0.1270705]
[1742267110006,0.72156026,83292.0,83291.0,0.007]
[1742267110206,0.24169116,83292.0,83291.0,0.1240705]
[1742267110412,0.24169116,83292.0,83291.0,0.5585705]
[1742267110700,0.21149116,83292.0,83291.0,0.5585705]
[1742267111207,0.22243498,83292.0,83291.0,0.5585705]
[1742267111503,0.22243498,83292.0,83291.0,0.5545705]
[1742267111899,0.10121755,83292.0,83291.0,0.5545705]
[1742267112102,0.25148665,83292.0,83291.0,0.5545705]
[1742267112297,0.25148665,83292.0,83291.0,0.3800705]
[1742267112710,0.25148665,83292.0,83291.0,0.1200705]
[1742267113004,0.1200705,83291.0,83290.0,0.12911145]
[1742267113203,0.13001432,83291.0,83290.0,0.120072]
[1742267113403,0.19401432,83291.0,83290.0,0.120072]
[1742267113712,0.1957676,83291.0,83290.0,0.120072]
[1742267115108,0.1957676,83291.0,83288.0,0.02117086]
[1742267115109,0.060036,83290.0,83288.0,0.02117086]
[1742267115410,0.060036,83290.0,83288.0,0.12914831]
[1742267115411,0.19501722,83289.0,83288.0,0.12914831]
[1742267115909,0.19501722,83289.0,83288.0,0.1318492]
[1742267116099,0.1987705,83289.0,83288.0,0.1318492]
[1742267116300,0.1200778,83286.0,83285.0,0.2401562]
[1742267116604,0.1200864,83280.0,83279.0,0.00086013]
[1742267116811,0.24103968,83280.0,83279.0,0.00018013]
[1742267117010,0.27223968,83280.0,83279.0,0.00018013]
[1742267117214,0.30263968,83280.0,83279.0,0.00018013]
[1742267118309,0.30163968,83280.0,83279.0,0.00018013]
[1742267118914,0.30463968,83280.0,83279.0,0.00018013]
[1742267119613,0.1201095,83264.0,83256.0,0.34685413]
[1742267119912,0.1201095,83264.0,83263.0,0.22463505]
[1742267120107,0.4809095,83264.0,83263.0,0.21463505]
[1742267120311,0.54976278,83264.0,83263.0,0.21463505]
[1742267120811,0.1201124,83262.0,83261.0,0.14125938]
[1742267121113,0.1201124,83262.0,83261.0,0.13222692]
[1742267121314,0.1852124,83262.0,83261.0,0.13222692]
[1742267121608,0.30616568,83262.0,83261.0,0.1201138]
[1742267121814,0.120121,83256.0,83255.0,0.00018013]
[1742267122115,0.24111428,83256.0,83255.0,0.00018013]
[1742267122312,0.30711428,83256.0,83255.0,0.00018013]
[1742267122514,0.33811428,83256.0,83255.0,0.00018013]
[1742267123105,0.35033453,83256.0,83255.0,1e-08]
[1742267123301,0.33811428,83256.0,83255.0,1e-08]
[1742267124710,0.33811428,83256.0,83247.0,0.00018013]
[1742267124711,0.0600648,83251.0,83247.0,0.00018013]
[1742267124906,0.1191326,83248.0,83247.0,0.00018013]
[1742267125113,0.12288588,83248.0,83247.0,0.12031413]
[1742267125413,0.12288588,83248.0,83247.0,0.15121413]
[1742267125817,0.12288588,83248.0,83247.0,0.15421413]
[1742267126009,0.12288588,83248.0,83247.0,0.15721413]
[1742267127611,0.12288588,83248.0,83247.0,0.03708013]
[1742267127810,0.12288588,83248.0,83247.0,0.06788013]
[1742267128010,0.18788588,83248.0,83247.0,0.03708013]
[1742267128205,0.18788588,83248.0,83247.0,0.00618013]
[1742267128710,0.18788588,83248.0,83247.0,0.12631413]
[1742267128917,0.30512588,83248.0,83247.0,0.12631413]
[1742267129113,0.00375328,83248.0,83247.0,0.97861413]
[1742267129311,0.00375328,83255.0,83254.0,0.1201239]
[1742267129509,0.12387578,83255.0,83254.0,0.1201239]
[1742267129910,0.12387578,83255.0,83254.0,0.6101239]
[1742267130110,0.00375328,83255.0,83254.0,0.8901239]
[1742267130306,0.00375328,83255.0,83254.0,0.6101239]
[1742267130507,0.12387298,83257.0,83256.0,0.120121]
[1742267130711,0.12387298,83257.0,83256.0,0.640121]
[1742267130911,0.00375328,83257.0,83256.0,0.640121]
[1742267131605,0.12387288,83257.0,83256.0,0.640121]
[1742267131919,0.12387288,83257.0,83256.0,0.52]
[1742267132103,0.18617288,83257.0,83256.0,0.25]
[1742267132309,0.19702871,83257.0,83256.0,0.370121]
[1742267132717,0.1201225,83255.0,83254.0,0.001]
[1742267132922,0.1191268,83252.0,83251.0,0.1801906]
[1742267133224,0.12998263,83252.0,83251.0,0.1801906]
[1742267133411,0.1201326,83248.0,83247.0,0.12031273]
[1742267133606,0.13098843,83248.0,83247.0,0.12031273]
[1742267134014,0.16338843,83248.0,83247.0,0.12031273]
[1742267134213,0.16714171,83248.0,83247.0,0.12031273]
[1742267134609,0.01460911,83248.0,83247.0,0.39031273]
[1742267134816,0.01460911,83248.0,83247.0,0.63031273]
[1742267135217,0.01360911,83248.0,83247.0,0.63031273]
[1742267135422,0.01260911,83248.0,83247.0,0.63031273]
[1742267136013,0.01260911,83248.0,83247.0,0.63431273]
[1742267136215,0.1201181,83258.0,83256.0,0.120121]
[1742267136414,0.0600579,83260.0,83256.0,0.120121]
[1742267136415,0.17835384,83260.0,83259.0,0.1201167]
[1742267136713,0.17835384,83260.0,83259.0,0.6801167]
[1742267136912,0.29846914,83260.0,83259.0,0.4001167]
[1742267137118,0.29846914,83260.0,83259.0,0.6501167]
[1742267138321,0.29846914,83260.0,83259.0,0.6601167]
[1742267138917,0.29946914,83260.0,83259.0,0.6601167]
[1742267139117,0.30046914,83260.0,83259.0,0.6601167]
[1742267139317,0.1221153,83260.0,83259.0,0.6601167]
[1742267139817,0.1221153,83260.0,83259.0,0.6921167]
[1742267140525,0.002,83260.0,83259.0,0.6921167]
[1742267141616,0.002,83260.0,83259.0,1.3229167]
[1742267141822,0.002,83260.0,83259.0,1.0529167]
[1742267142123,0.002,83260.0,83259.0,1.3129167]
[1742267142323,0.17835384,83262.0,83260.0,0.0600576]
[1742267142514,0.17835384,83262.0,83261.0,0.2705938]
[1742267142714,0.17835384,83262.0,83261.0,1.0405938]
[1742267142914,0.17835384,83262.0,83261.0,1.0505938]
[1742267143414,0.17935384,83262.0,83261.0,1.0505938]
[1742267144628,0.12360998,83262.0,83261.0,1.0505938]
[1742267144926,0.0344329,83262.0,83261.0,1.0505938]
[1742267145223,0.21429746,83267.0,83266.0,0.1201066]
[1742267145418,0.21429746,83267.0,83266.0,1.2609066]
[1742267145821,0.21429746,83267.0,83266.0,1.3264066]
[1742267146323,0.21429746,83267.0,83266.0,1.3324066]
[1742267146527,0.21447759,83272.0,83271.0,0.1200994]
[1742267146824,0.21447759,83272.0,83271.0,1.0900394]
[1742267148027,0.21447759,83272.0,83271.0,1.0920394]
[1742267148229,0.21447759,83272.0,83271.0,1.0930394]
[1742267148623,0.21823139,83272.0,83271.0,1.0930394]
[1742267149721,0.21823139,83272.0,83271.0,1.1240394]
[1742267150720,0.00393393,83272.0,83271.0,1.1240394]
[1742267151522,0.00393393,83272.0,83271.0,1.1340394]
[1742267153531,0.00018013,83272.0,83271.0,1.1340394]
[1742267154536,0.00393401,83272.0,83271.0,1.1340394]
[1742267155329,0.00393401,83272.0,83271.0,1.0167994]
[1742267155519,0.00393401,83272.0,83271.0,1.1340394]
[1742267155722,0.01478442,83272.0,83271.0,1.1340394]
[1742267157034,0.13488232,83272.0,83271.0,1.1340394]
[1742267157236,0.13488232,83272.0,83271.0,1.1030394]
[1742267157438,0.12403191,83272.0,83271.0,1.1030394]
[1742267157735,0.00393401,83272.0,83271.0,1.1030394]
[1742267158940,0.11139592,83272.0,83271.0,1.1030394]
[1742267159234,0.23149382,83272.0,83271.0,0.5957]
[1742267159428,0.24243883,83272.0,83271.0,0.16074]
[1742267159630,0.30833883,83272.0,83271.0,0.16074]
[1742267160132,0.30833855,83272.0,83271.0,0.5308394]
[1742267160331,0.30833855,83272.0,83271.0,0.8098394]
[1742267160629,0.30833855,83272.0,83271.0,0.5641394]
[1742267161030,0.30833855,83272.0,83271.0,0.5631394]
[1742267161334,0.30833855,83272.0,83271.0,0.2798394]
[1742267162033,0.30833855,83272.0,83271.0,0.001]
[1742267162438,0.1201109,83263.0,83262.0,0.4809096]
[1742267162636,0.13105563,83263.0,83262.0,0.6210211]
[1742267162938,0.10544473,83263.0,83262.0,0.6210211]
[1742267163134,0.10544473,83263.0,83262.0,0.8610211]
[1742267163434,0.03585388,83263.0,83262.0,0.8610211]
[1742267163629,0.00475388,83263.0,83262.0,1.1110211]
[1742267163939,0.00475388,83263.0,83262.0,1.2040211]
[1742267164644,0.01662803,83263.0,83262.0,1.2040211]
[1742267165137,0.01562803,83263.0,83262.0,1.2040211]
[1742267165322,0.01562803,83263.0,83262.0,1.2070211]
[1742267165926,0.01462803,83263.0,83262.0,1.2080211]
[1742267166524,0.01462803,83263.0,83262.0,1.2090211]
[1742267168434,0.00375388,83263.0,83262.0,1.2090211]
[1742267170729,0.00375388,83263.0,83262.0,1.3262611]
[1742267171435,0.12386478,83263.0,83262.0,1.2090211]
[1742267171634,0.13485772,83263.0,83262.0,1.3262611]
[1742267171824,0.10804682,83263.0,83262.0,1.3262611]
[1742267172443,0.22815707,83263.0,83262.0,1.3262611]
[1742267172641,0.10804617,83263.0,83262.0,1.3262611]
[1742267172832,0.10804617,83263.0,83262.0,1.3222611]
[1742267173137,0.10804617,83263.0,83262.0,1.3232611]
[1742267173642,0.10804617,83263.0,83262.0,1.3222611]
[1742267174031,0.10804617,83263.0,83262.0,1.3232611]
[1742267174641,0.10804617,83263.0,83262.0,1.3222611]
[1742267174941,0.16644151,83263.0,83262.0,1.3232611]
[1742267175131,0.07314151,83263.0,83262.0,1.3232611]
[1742267175731,0.07314151,83263.0,83262.0,1.3222611]
[1742267175934,0.07314151,83263.0,83262.0,1.3232611]
[1742267176139,0.07314151,83263.0,83262.0,1.3222611]
[1742267176330,0.07314151,83263.0,83262.0,1.3232611]
[1742267176842,0.13344151,83263.0,83262.0,1.3232611]
[1742267177038,0.16464151,83263.0,83262.0,1.3232611]
[1742267178133,0.28475241,83263.0,83262.0,0.8630211]
[1742267178435,0.1201239,83254.0,83253.0,0.36144]
[1742267178741,0.1201311,83249.0,83244.0,0.060069]
[1742267178935,0.1201311,83249.0,83240.0,0.42987136]
[1742267178936,0.19242489,83248.0,83240.0,0.42987136]